[Event "Titled Tuesday Blitz August 31 2021"]
[White "Florescu, Codrut-Constantin"]
[Black "Eljanov, Pavel"]
[WhiteFideId "1202200"]
[BlackFideId "14102951"]
[WhiteElo "2243"]
[BlackElo "2602"]
[Result "0-1"]
[Round "05"]
[TimeControl "180+1"]
[Date "2021.08.31"]
[WhiteClock "0:00:15"]
[BlackClock "0:00:43"]

1. d4 {[%clk 0:03:00]}  d5 {[%clk 0:02:59]} 2. c4 {[%clk 0:03:00]}  e6 {[%clk 0:02:59]} 3. Nf3 {[%clk 0:02:59]}  Nf6 {[%clk 0:02:58]} 4. Nc3 {[%clk 0:02:59]}  c6 {[%clk 0:02:58]} 5. e3 {[%clk 0:02:57]}  Nbd7 {[%clk 0:02:56]} 6. Be2 {[%clk 0:02:57]}  dxc4 {[%clk 0:02:54]} 7. a4 {[%clk 0:02:56]}  Bd6 {[%clk 0:02:52]} 8. Nd2 {[%clk 0:02:55]}  O-O {[%clk 0:02:51]} 9. Nxc4 {[%clk 0:02:55]}  Bc7 {[%clk 0:02:51]} 10. O-O {[%clk 0:02:54]}  e5 {[%clk 0:02:38]} 11. e4 {[%clk 0:02:53]}  exd4 {[%clk 0:02:37]} 12. Qxd4 {[%clk 0:02:53]}  Ne5 {[%clk 0:02:34]} 13. Qxd8 {[%clk 0:02:48]}  Rxd8 {[%clk 0:02:34]} 14. Bg5 {[%clk 0:02:42]}  Be6 {[%clk 0:02:29]} 15. Ne3 {[%clk 0:02:34]}  h6 {[%clk 0:02:13]} 16. Bxf6 {[%clk 0:02:33]}  gxf6 {[%clk 0:02:13]} 17. Rfd1 {[%clk 0:02:03]}  Bb3 {[%clk 0:02:07]} 18. Rxd8+ {[%clk 0:01:59]}  Rxd8 {[%clk 0:02:08]} 19. Nf5 {[%clk 0:01:50]}  Kh7 {[%clk 0:01:57]} 20. Bd1 {[%clk 0:01:38]}  Be6 {[%clk 0:01:56]} 21. b4 {[%clk 0:01:07]}  Nd3 {[%clk 0:01:46]} 22. b5 {[%clk 0:00:48]}  Bb6 {[%clk 0:01:44]} 23. Be2 {[%clk 0:00:35]}  Nxf2 {[%clk 0:01:43]} 24. Kf1 {[%clk 0:00:35]}  Nxe4 {[%clk 0:01:27]} 25. Nxe4 {[%clk 0:00:32]}  Bxf5 {[%clk 0:01:27]} 26. Bf3 {[%clk 0:00:29]}  cxb5 {[%clk 0:01:23]} 27. axb5 {[%clk 0:00:29]}  Kg7 {[%clk 0:01:23]} 28. Ke2 {[%clk 0:00:26]}  Be6 {[%clk 0:01:18]} 29. Rc1 {[%clk 0:00:26]}  Rd4 {[%clk 0:01:16]} 30. Ng3 {[%clk 0:00:24]}  Bc4+ {[%clk 0:01:14]} 31. Ke1 {[%clk 0:00:21]}  Ba5+ {[%clk 0:00:55]} 32. Kf2 {[%clk 0:00:20]}  Rd2+ {[%clk 0:00:55]} 33. Ke3 {[%clk 0:00:21]}  Rd3+ {[%clk 0:00:49]} 34. Ke4 {[%clk 0:00:19]}  Rc3 {[%clk 0:00:50]} 35. Nf5+ {[%clk 0:00:18]}  Kh7 {[%clk 0:00:48]} 36. Rxc3 {[%clk 0:00:18]}  Bxc3 {[%clk 0:00:47]} 37. Nd6 {[%clk 0:00:18]}  Bf1 {[%clk 0:00:44]} 38. Nxb7 {[%clk 0:00:16]}  Bxb5 {[%clk 0:00:44]} 39. Nd6 {[%clk 0:00:15]}  Bc6+ {[%clk 0:00:44]} 40. Kd3 {[%clk 0:00:16]}  Bxf3 {[%clk 0:00:43]} 41. gxf3 {[%clk 0:00:15]}  Be5 {[%clk 0:00:43]} 42. Nxf7 {[%clk 0:00:15]}  Bc7 {[%clk 0:00:43]} 0-1


[Site "https://www.chess.com"]

[Event "Titled Tuesday Blitz August 31 2021"]
[White "Gerzhoy, Leonid"]
[Black "Bortnyk, Olexandr"]
[WhiteFideId "2806126"]
[BlackFideId "14120828"]
[WhiteElo "2613"]
[BlackElo "2723"]
[Result "0-1"]
[Round "05"]
[TimeControl "180+1"]
[Date "2021.08.31"]
[WhiteClock "0:00:10"]
[BlackClock "0:00:18"]

1. d4 {[%clk 0:02:59]}  f5 {[%clk 0:02:59]} 2. Nf3 {[%clk 0:02:58]}  Nf6 {[%clk 0:02:59]} 3. Bg5 {[%clk 0:02:58]}  Ne4 {[%clk 0:02:58]} 4. Bh4 {[%clk 0:02:57]}  c6 {[%clk 0:02:58]} 5. Nbd2 {[%clk 0:02:54]}  d5 {[%clk 0:02:54]} 6. e3 {[%clk 0:02:50]}  Be6 {[%clk 0:02:48]} 7. Nxe4 {[%clk 0:02:48]}  fxe4 {[%clk 0:02:47]} 8. Nd2 {[%clk 0:02:44]}  g6 {[%clk 0:02:45]} 9. c4 {[%clk 0:02:39]}  a6 {[%clk 0:02:33]} 10. cxd5 {[%clk 0:02:38]}  cxd5 {[%clk 0:02:33]} 11. Be2 {[%clk 0:02:32]}  Bg7 {[%clk 0:02:32]} 12. O-O {[%clk 0:02:31]}  O-O {[%clk 0:02:32]} 13. f3 {[%clk 0:02:31]}  exf3 {[%clk 0:02:31]} 14. Nxf3 {[%clk 0:02:29]}  Nc6 {[%clk 0:02:31]} 15. Ng5 {[%clk 0:02:21]}  Bf5 {[%clk 0:02:18]} 16. Bd3 {[%clk 0:02:10]}  Qd7 {[%clk 0:02:16]} 17. Bxf5 {[%clk 0:02:04]}  Rxf5 {[%clk 0:02:17]} 18. Rxf5 {[%clk 0:02:03]}  Qxf5 {[%clk 0:02:16]} 19. Qf3 {[%clk 0:02:02]}  Qxf3 {[%clk 0:02:14]} 20. Nxf3 {[%clk 0:02:01]}  h6 {[%clk 0:02:03]} 21. Rc1 {[%clk 0:01:59]}  e6 {[%clk 0:02:02]} 22. Bg3 {[%clk 0:01:51]}  a5 {[%clk 0:01:57]} 23. Ne5 {[%clk 0:01:50]}  Bxe5 {[%clk 0:01:57]} 24. Bxe5 {[%clk 0:01:50]}  a4 {[%clk 0:01:57]} 25. Kf2 {[%clk 0:01:40]}  Ra5 {[%clk 0:01:40]} 26. Ke2 {[%clk 0:01:38]}  Rb5 {[%clk 0:01:37]} 27. Rc2 {[%clk 0:01:35]}  Kf7 {[%clk 0:01:36]} 28. g4 {[%clk 0:01:25]}  Nxe5 {[%clk 0:01:23]} 29. dxe5 {[%clk 0:01:24]}  Rb4 {[%clk 0:01:23]} 30. h3 {[%clk 0:01:19]}  Ke8 {[%clk 0:01:23]} 31. Kd3 {[%clk 0:01:14]}  Kd7 {[%clk 0:01:23]} 32. Rf2 {[%clk 0:01:10]}  g5 {[%clk 0:01:21]} 33. Rf7+ {[%clk 0:01:04]}  Kd8 {[%clk 0:01:06]} 34. Rf2 {[%clk 0:00:59]}  Ke7 {[%clk 0:01:02]} 35. Rc2 {[%clk 0:00:57]}  b5 {[%clk 0:00:56]} 36. a3 {[%clk 0:00:49]}  Re4 {[%clk 0:00:42]} 37. Rc7+ {[%clk 0:00:45]}  Kd8 {[%clk 0:00:42]} 38. Rb7 {[%clk 0:00:44]}  Rxe5 {[%clk 0:00:39]} 39. Rxb5 {[%clk 0:00:43]}  Re4 {[%clk 0:00:39]} 40. Rc5 {[%clk 0:00:24]}  Kd7 {[%clk 0:00:35]} 41. Rc2 {[%clk 0:00:23]}  h5 {[%clk 0:00:33]} 42. gxh5 {[%clk 0:00:20]}  Rh4 {[%clk 0:00:33]} 43. Rg2 {[%clk 0:00:20]}  Rxh5 {[%clk 0:00:34]} 44. Rg3 {[%clk 0:00:20]}  Kd6 {[%clk 0:00:34]} 45. e4 {[%clk 0:00:16]}  Ke5 {[%clk 0:00:29]} 46. exd5 {[%clk 0:00:15]}  exd5 {[%clk 0:00:30]} 47. Ke3 {[%clk 0:00:12]}  d4+ {[%clk 0:00:26]} 48. Kd3 {[%clk 0:00:12]}  Kf4 {[%clk 0:00:17]} 49. Rg4+ {[%clk 0:00:12]}  Kf5 {[%clk 0:00:18]} 50. Rg3 {[%clk 0:00:12]}  Ke5 {[%clk 0:00:18]} 51. Rf3 {[%clk 0:00:11]}  Rh8 {[%clk 0:00:19]} 52. Rg3 {[%clk 0:00:10]}  Kf4 {[%clk 0:00:19]} 53. Rg4+ {[%clk 0:00:10]}  Kf5 {[%clk 0:00:19]} 54. Rxd4 {[%clk 0:00:10]}  Rxh3+ {[%clk 0:00:19]} 55. Kc4 {[%clk 0:00:10]}  Rh4 {[%clk 0:00:18]} 0-1


[Site "https://www.chess.com"]

[Event "Titled Tuesday Blitz August 31 2021"]
[White "Goltsev, Dmitry"]
[Black "Indjic, Aleksandar"]
[WhiteFideId "24176710"]
[BlackFideId "911925"]
[WhiteElo "2369"]
[BlackElo "2643"]
[Result "1/2-1/2"]
[Round "05"]
[TimeControl "180+1"]
[Date "2021.08.31"]
[WhiteClock "0:00:08"]
[BlackClock "0:00:15"]

1. e4 {[%clk 0:03:00]}  Nf6 {[%clk 0:02:59]} 2. e5 {[%clk 0:02:59]}  Nd5 {[%clk 0:02:59]} 3. d4 {[%clk 0:03:00]}  d6 {[%clk 0:02:59]} 4. c4 {[%clk 0:03:00]}  Nb6 {[%clk 0:02:58]} 5. exd6 {[%clk 0:03:01]}  exd6 {[%clk 0:02:59]} 6. Nc3 {[%clk 0:03:01]}  Be7 {[%clk 0:02:58]} 7. Bd3 {[%clk 0:03:02]}  Nc6 {[%clk 0:02:58]} 8. Nge2 {[%clk 0:03:02]}  a5 {[%clk 0:02:57]} 9. a3 {[%clk 0:03:02]}  O-O {[%clk 0:02:54]} 10. O-O {[%clk 0:03:02]}  Bf6 {[%clk 0:02:53]} 11. Be3 {[%clk 0:03:01]}  Bg4 {[%clk 0:02:52]} 12. f3 {[%clk 0:03:01]}  Bh5 {[%clk 0:02:52]} 13. Bf2 {[%clk 0:02:57]}  Bg6 {[%clk 0:02:51]} 14. Ne4 {[%clk 0:02:56]}  d5 {[%clk 0:02:46]} 15. Nxf6+ {[%clk 0:02:56]}  Qxf6 {[%clk 0:02:45]} 16. c5 {[%clk 0:02:56]}  Nc8 {[%clk 0:02:34]} 17. Bb5 {[%clk 0:02:49]}  Nd8 {[%clk 0:02:29]} 18. Bg3 {[%clk 0:02:47]}  c6 {[%clk 0:02:28]} 19. Ba4 {[%clk 0:02:45]}  Ne6 {[%clk 0:02:26]} 20. Be5 {[%clk 0:02:37]}  Qd8 {[%clk 0:02:25]} 21. Re1 {[%clk 0:02:37]}  Re8 {[%clk 0:02:22]} 22. Nf4 {[%clk 0:02:36]}  Nf8 {[%clk 0:02:05]} 23. Nxg6 {[%clk 0:02:36]}  hxg6 {[%clk 0:02:05]} 24. Bc2 {[%clk 0:02:32]}  b6 {[%clk 0:01:52]} 25. b4 {[%clk 0:02:31]}  b5 {[%clk 0:01:46]} 26. Qd2 {[%clk 0:02:30]}  Re7 {[%clk 0:01:16]} 27. Bf4 {[%clk 0:02:08]}  axb4 {[%clk 0:01:09]} 28. axb4 {[%clk 0:02:06]}  Rea7 {[%clk 0:01:07]} 29. Qc3 {[%clk 0:02:04]}  Ne6 {[%clk 0:01:02]} 30. Be3 {[%clk 0:02:03]}  Ne7 {[%clk 0:01:01]} 31. Rxa7 {[%clk 0:02:03]}  Rxa7 {[%clk 0:01:02]} 32. Ra1 {[%clk 0:02:03]}  Qa8 {[%clk 0:01:02]} 33. Rxa7 {[%clk 0:02:02]}  Qxa7 {[%clk 0:01:03]} 34. g4 {[%clk 0:01:58]}  g5 {[%clk 0:01:01]} 35. Bf5 {[%clk 0:01:43]}  Nf4 {[%clk 0:00:59]} 36. Bxf4 {[%clk 0:01:40]}  gxf4 {[%clk 0:01:00]} 37. Bc2 {[%clk 0:01:40]}  Qa2 {[%clk 0:00:59]} 38. Qd2 {[%clk 0:01:37]}  Ng6 {[%clk 0:00:44]} 39. h4 {[%clk 0:01:34]}  Kf8 {[%clk 0:00:41]} 40. h5 {[%clk 0:01:33]}  Nh4 {[%clk 0:00:34]} 41. Qxf4 {[%clk 0:01:25]}  Qxc2 {[%clk 0:00:19]} 42. Qb8+ {[%clk 0:01:19]}  Ke7 {[%clk 0:00:18]} 43. Qd6+ {[%clk 0:01:14]}  Ke8 {[%clk 0:00:18]} 44. Qxc6+ {[%clk 0:01:13]}  Ke7 {[%clk 0:00:18]} 45. Qd6+ {[%clk 0:01:09]}  Ke8 {[%clk 0:00:18]} 46. Qb8+ {[%clk 0:00:27]}  Ke7 {[%clk 0:00:17]} 47. Qc7+ {[%clk 0:00:17]}  Ke8 {[%clk 0:00:16]} 48. Qe5+ {[%clk 0:00:16]}  Kf8 {[%clk 0:00:16]} 49. Qb8+ {[%clk 0:00:11]}  Ke7 {[%clk 0:00:16]} 50. Qd6+ {[%clk 0:00:09]}  Ke8 {[%clk 0:00:16]} 51. Qb8+ {[%clk 0:00:08]}  Ke7 {[%clk 0:00:15]} 1/2-1/2


[Site "https://www.chess.com"]

[Event "Titled Tuesday Blitz August 31 2021"]
[White "Grebeniuk, Semen"]
[Black "Ponikarovsky, Alexey"]
[WhiteFideId "14117509"]
[BlackFideId "4122887"]
[WhiteElo "2221"]
[BlackElo "1944"]
[Result "0-1"]
[Round "05"]
[TimeControl "180+1"]
[Date "2021.08.31"]
[WhiteClock "0:00:01"]
[BlackClock "0:00:46"]

1. Nf3 {[%clk 0:03:00]}  c5 {[%clk 0:03:00]} 2. e3 {[%clk 0:02:52]}  e6 {[%clk 0:03:00]} 3. b3 {[%clk 0:02:52]}  d5 {[%clk 0:03:00]} 4. Bb2 {[%clk 0:02:51]}  Nf6 {[%clk 0:03:01]} 5. c4 {[%clk 0:02:45]}  Be7 {[%clk 0:03:01]} 6. cxd5 {[%clk 0:02:44]}  exd5 {[%clk 0:03:02]} 7. Be2 {[%clk 0:02:42]}  O-O {[%clk 0:03:02]} 8. O-O {[%clk 0:02:42]}  Nc6 {[%clk 0:03:02]} 9. d4 {[%clk 0:02:42]}  cxd4 {[%clk 0:03:03]} 10. Nxd4 {[%clk 0:02:42]}  Be6 {[%clk 0:03:04]} 11. Nc3 {[%clk 0:02:37]}  Qd7 {[%clk 0:03:02]} 12. Rc1 {[%clk 0:02:36]}  Rac8 {[%clk 0:03:01]} 13. Na4 {[%clk 0:02:29]}  Nxd4 {[%clk 0:02:58]} 14. Qxd4 {[%clk 0:02:27]}  b6 {[%clk 0:02:55]} 15. Rfd1 {[%clk 0:02:08]}  Rxc1 {[%clk 0:02:53]} 16. Rxc1 {[%clk 0:02:08]}  Rc8 {[%clk 0:02:53]} 17. Rxc8+ {[%clk 0:01:54]}  Qxc8 {[%clk 0:02:54]} 18. h3 {[%clk 0:01:55]}  h6 {[%clk 0:02:51]} 19. Bd3 {[%clk 0:01:52]}  Qd7 {[%clk 0:02:46]} 20. Bb1 {[%clk 0:01:42]}  Bf5 {[%clk 0:02:46]} 21. Bd3 {[%clk 0:01:34]}  Bxd3 {[%clk 0:02:45]} 22. Qxd3 {[%clk 0:01:35]}  Ne4 {[%clk 0:02:45]} 23. Nc3 {[%clk 0:01:18]}  Nxc3 {[%clk 0:02:45]} 24. Qxc3 {[%clk 0:01:19]}  Bf6 {[%clk 0:02:41]} 25. Qd2 {[%clk 0:01:19]}  Bxb2 {[%clk 0:02:41]} 26. Qxb2 {[%clk 0:01:20]}  Qc6 {[%clk 0:02:36]} 27. g3 {[%clk 0:01:16]}  g6 {[%clk 0:02:33]} 28. h4 {[%clk 0:01:17]}  Qe6 {[%clk 0:02:30]} 29. Qd4 {[%clk 0:01:15]}  Qe4 {[%clk 0:02:28]} 30. Qd2 {[%clk 0:00:53]}  a5 {[%clk 0:02:22]} 31. Qe2 {[%clk 0:00:49]}  d4 {[%clk 0:02:20]} 32. Qd2 {[%clk 0:00:40]}  d3 {[%clk 0:02:16]} 33. Qc3 {[%clk 0:00:34]}  Qd5 {[%clk 0:02:14]} 34. Qd2 {[%clk 0:00:30]}  b5 {[%clk 0:02:15]} 35. Kh2 {[%clk 0:00:20]}  a4 {[%clk 0:02:13]} 36. bxa4 {[%clk 0:00:20]}  bxa4 {[%clk 0:02:13]} 37. g4 {[%clk 0:00:19]}  Qc4 {[%clk 0:02:08]} 38. Kg3 {[%clk 0:00:16]}  Qc2 {[%clk 0:02:03]} 39. Qb4 {[%clk 0:00:13]}  d2 {[%clk 0:02:01]} 40. Qb8+ {[%clk 0:00:13]}  Kh7 {[%clk 0:01:59]} 41. Qf4 {[%clk 0:00:08]}  Qxa2 {[%clk 0:01:49]} 42. Qd4 {[%clk 0:00:05]}  a3 {[%clk 0:01:42]} 43. h5 {[%clk 0:00:05]}  Qb2 {[%clk 0:01:40]} 44. hxg6+ {[%clk 0:00:05]}  Kxg6 {[%clk 0:01:19]} 45. Qd8 {[%clk 0:00:03]}  Kg7 {[%clk 0:01:14]} 46. g5 {[%clk 0:00:02]}  hxg5 {[%clk 0:01:05]} 47. Qxg5+ {[%clk 0:00:03]}  Kh7 {[%clk 0:01:00]} 48. Qf5+ {[%clk 0:00:04]}  Kg8 {[%clk 0:00:58]} 49. Qc8+ {[%clk 0:00:03]}  Kg7 {[%clk 0:00:55]} 50. Qg4+ {[%clk 0:00:03]}  Kf6 {[%clk 0:00:53]} 51. Qf4+ {[%clk 0:00:01]}  Ke6 {[%clk 0:00:51]} 52. Qg4+ {[%clk 0:00:02]}  Kd5 {[%clk 0:00:50]} 53. Qf3+ {[%clk 0:00:01]}  Kc5 {[%clk 0:00:48]} 54. Qf5+ {[%clk 0:00:01]}  Kb4 {[%clk 0:00:47]} 55. Qf6 {[%clk 0:00:01]}  Qxf6 {[%clk 0:00:46]} 0-1


[Site "https://www.chess.com"]

[Event "Titled Tuesday Blitz August 31 2021"]
[White "Dronavalli, Harika"]
[Black "Perera Alfonso, Rene Humberto"]
[WhiteFideId "5015197"]
[BlackFideId "3514722"]
[WhiteElo "2422"]
[BlackElo "2313"]
[Result "0-1"]
[Round "05"]
[TimeControl "180+1"]
[Date "2021.08.31"]
[WhiteClock "0:00:20"]
[BlackClock "0:00:42"]

1. Nf3 {[%clk 0:02:59]}  d5 {[%clk 0:02:59]} 2. c4 {[%clk 0:02:58]}  c6 {[%clk 0:02:59]} 3. g3 {[%clk 0:02:58]}  Nf6 {[%clk 0:02:59]} 4. Bg2 {[%clk 0:02:59]}  dxc4 {[%clk 0:02:54]} 5. O-O {[%clk 0:02:54]}  g6 {[%clk 0:02:47]} 6. Na3 {[%clk 0:02:40]}  Bg7 {[%clk 0:02:36]} 7. Nxc4 {[%clk 0:02:39]}  O-O {[%clk 0:02:36]} 8. d4 {[%clk 0:02:39]}  Be6 {[%clk 0:02:32]} 9. Nce5 {[%clk 0:02:39]}  Nbd7 {[%clk 0:02:31]} 10. b3 {[%clk 0:02:39]}  Nxe5 {[%clk 0:02:29]} 11. Nxe5 {[%clk 0:02:39]}  Ng4 {[%clk 0:02:28]} 12. Nxg4 {[%clk 0:02:33]}  Bxg4 {[%clk 0:02:29]} 13. Bb2 {[%clk 0:02:34]}  Qd7 {[%clk 0:02:28]} 14. Qd3 {[%clk 0:02:30]}  Rad8 {[%clk 0:02:26]} 15. Rfd1 {[%clk 0:02:25]}  e5 {[%clk 0:02:08]} 16. dxe5 {[%clk 0:02:17]}  Qxd3 {[%clk 0:02:07]} 17. Rxd3 {[%clk 0:02:18]}  Bxe2 {[%clk 0:02:07]} 18. Rxd8 {[%clk 0:02:07]}  Rxd8 {[%clk 0:02:08]} 19. Bc3 {[%clk 0:02:07]}  h5 {[%clk 0:02:04]} 20. Re1 {[%clk 0:02:03]}  Bg4 {[%clk 0:02:03]} 21. h3 {[%clk 0:01:59]}  Be6 {[%clk 0:02:03]} 22. Bf1 {[%clk 0:01:54]}  a5 {[%clk 0:01:40]} 23. Bxa5 {[%clk 0:01:34]}  Ra8 {[%clk 0:01:38]} 24. b4 {[%clk 0:01:31]}  Bxa2 {[%clk 0:01:38]} 25. f4 {[%clk 0:01:26]}  Be6 {[%clk 0:01:34]} 26. Rd1 {[%clk 0:01:23]}  Bf8 {[%clk 0:01:32]} 27. Bg2 {[%clk 0:01:09]}  Ra6 {[%clk 0:01:25]} 28. Bf1 {[%clk 0:00:53]}  Ra8 {[%clk 0:01:23]} 29. Bg2 {[%clk 0:00:54]}  c5 {[%clk 0:01:15]} 30. Bxb7 {[%clk 0:00:46]}  Rb8 {[%clk 0:01:06]} 31. Bd5 {[%clk 0:00:43]}  cxb4 {[%clk 0:00:58]} 32. Bxe6 {[%clk 0:00:42]}  fxe6 {[%clk 0:00:58]} 33. Bc7 {[%clk 0:00:42]}  Rb5 {[%clk 0:00:53]} 34. Bd6 {[%clk 0:00:38]}  b3 {[%clk 0:00:53]} 35. Bxf8 {[%clk 0:00:36]}  Kxf8 {[%clk 0:00:54]} 36. Kf2 {[%clk 0:00:36]}  b2 {[%clk 0:00:54]} 37. Rb1 {[%clk 0:00:36]}  Rb3 {[%clk 0:00:52]} 38. g4 {[%clk 0:00:36]}  h4 {[%clk 0:00:51]} 39. Ke2 {[%clk 0:00:32]}  Ke7 {[%clk 0:00:50]} 40. Kd2 {[%clk 0:00:33]}  Rxh3 {[%clk 0:00:49]} 41. Kc2 {[%clk 0:00:31]}  Rh2+ {[%clk 0:00:49]} 42. Kb3 {[%clk 0:00:31]}  Rf2 {[%clk 0:00:49]} 43. Kc3 {[%clk 0:00:22]}  h3 {[%clk 0:00:48]} 44. Rh1 {[%clk 0:00:20]}  h2 {[%clk 0:00:46]} 45. Kb3 {[%clk 0:00:20]}  Rg2 {[%clk 0:00:46]} 46. Ka2 {[%clk 0:00:20]}  Rg1 {[%clk 0:00:44]} 47. Rxh2 {[%clk 0:00:20]}  b1=Q+ {[%clk 0:00:42]} 0-1


[Site "https://www.chess.com"]

[Event "Titled Tuesday Blitz August 31 2021"]
[White "Ismagilov, Damir"]
[Black "Girinath, P.D.S."]
[WhiteFideId "34199982"]
[BlackFideId "5000572"]
[WhiteElo "2075"]
[BlackElo "2333"]
[Result "0-1"]
[Round "05"]
[TimeControl "180+1"]
[Date "2021.08.31"]
[WhiteClock "0:00:44"]
[BlackClock "0:00:29"]

1. e4 {[%clk 0:03:00]}  e6 {[%clk 0:02:59]} 2. d3 {[%clk 0:02:54]}  d5 {[%clk 0:03:00]} 3. Qe2 {[%clk 0:02:55]}  dxe4 {[%clk 0:02:48]} 4. dxe4 {[%clk 0:02:54]}  e5 {[%clk 0:02:48]} 5. g3 {[%clk 0:02:54]}  Nc6 {[%clk 0:02:41]} 6. Bg2 {[%clk 0:02:54]}  b6 {[%clk 0:02:37]} 7. c3 {[%clk 0:02:53]}  a5 {[%clk 0:02:35]} 8. Qb5 {[%clk 0:02:51]}  Qd6 {[%clk 0:02:19]} 9. Qd5 {[%clk 0:02:43]}  Nf6 {[%clk 0:02:13]} 10. Qxd6 {[%clk 0:02:41]}  Bxd6 {[%clk 0:02:14]} 11. Bg5 {[%clk 0:02:40]}  Nd7 {[%clk 0:02:08]} 12. Ne2 {[%clk 0:02:37]}  Ba6 {[%clk 0:02:01]} 13. Nd2 {[%clk 0:02:35]}  Nc5 {[%clk 0:02:01]} 14. Nc1 {[%clk 0:02:32]}  f6 {[%clk 0:01:49]} 15. Be3 {[%clk 0:02:31]}  O-O-O {[%clk 0:01:44]} 16. Bf1 {[%clk 0:02:26]}  Bxf1 {[%clk 0:01:42]} 17. Kxf1 {[%clk 0:02:27]}  Ne6 {[%clk 0:01:38]} 18. Ke2 {[%clk 0:02:25]}  Bc5 {[%clk 0:01:38]} 19. Nd3 {[%clk 0:02:24]}  Bxe3 {[%clk 0:01:36]} 20. Kxe3 {[%clk 0:02:25]}  Rd7 {[%clk 0:01:34]} 21. Rhd1 {[%clk 0:01:54]}  Rhd8 {[%clk 0:01:33]} 22. Nf3 {[%clk 0:01:54]}  Nc5 {[%clk 0:01:17]} 23. Nfe1 {[%clk 0:01:54]}  a4 {[%clk 0:01:14]} 24. Ke2 {[%clk 0:01:50]}  Nxe4 {[%clk 0:01:12]} 25. f3 {[%clk 0:01:49]}  Nd6 {[%clk 0:01:08]} 26. b3 {[%clk 0:01:46]}  Nb5 {[%clk 0:01:05]} 27. Rdc1 {[%clk 0:01:37]}  axb3 {[%clk 0:01:00]} 28. axb3 {[%clk 0:01:38]}  Kb7 {[%clk 0:00:59]} 29. h4 {[%clk 0:01:27]}  f5 {[%clk 0:00:58]} 30. Rc2 {[%clk 0:01:25]}  e4 {[%clk 0:00:44]} 31. fxe4 {[%clk 0:01:26]}  fxe4 {[%clk 0:00:44]} 32. Nf4 {[%clk 0:01:26]}  Ne5 {[%clk 0:00:36]} 33. Ke3 {[%clk 0:01:08]}  Nd6 {[%clk 0:00:34]} 34. Rca2 {[%clk 0:01:03]}  Ng4+ {[%clk 0:00:31]} 35. Ke2 {[%clk 0:01:00]}  Nf5 {[%clk 0:00:30]} 36. Ne6 {[%clk 0:00:44]}  Nxg3# {[%clk 0:00:29]} 0-1


[Site "https://www.chess.com"]

[Event "Titled Tuesday Blitz August 31 2021"]
[White "Kamsky, Gata"]
[Black "Abdusattorov, Nodirbek"]
[WhiteFideId "2000024"]
[BlackFideId "14204118"]
[WhiteElo "2644"]
[BlackElo "2662"]
[Result "1-0"]
[Round "05"]
[TimeControl "180+1"]
[Date "2021.08.31"]
[WhiteClock "0:02:21"]
[BlackClock "0:02:42"]

1. e4 {[%clk 0:02:52]}  e6 {[%clk 0:02:59]} 2. d4 {[%clk 0:02:49]}  d5 {[%clk 0:03:00]} 3. exd5 {[%clk 0:02:44]}  exd5 {[%clk 0:03:00]} 4. Nf3 {[%clk 0:02:45]}  Nc6 {[%clk 0:02:56]} 5. Bf4 {[%clk 0:02:36]}  Bd6 {[%clk 0:02:44]} 6. Bxd6 {[%clk 0:02:35]}  Qxd6 {[%clk 0:02:45]} 7. c3 {[%clk 0:02:35]}  Nge7 {[%clk 0:02:45]} 8. Bd3 {[%clk 0:02:34]}  Bf5 {[%clk 0:02:44]} 9. O-O {[%clk 0:02:33]}  O-O {[%clk 0:02:42]} 10. Bxf5 {[%clk 0:02:29]}  Nxf5 {[%clk 0:02:43]} 11. Qd3 {[%clk 0:02:27]}  Nce7 {[%clk 0:02:43]} 12. Nbd2 {[%clk 0:02:25]}  Nc6 {[%clk 0:02:42]} 13. Qxf5 {[%clk 0:02:21]} 1-0


[Site "https://www.chess.com"]

[Event "Titled Tuesday Blitz August 31 2021"]
[White "Karttunen, Mika"]
[Black "Holt, Conrad"]
[WhiteFideId "502081"]
[BlackFideId "2034387"]
[WhiteElo "2343"]
[BlackElo "2586"]
[Result "0-1"]
[Round "05"]
[TimeControl "180+1"]
[Date "2021.08.31"]
[WhiteClock "0:00:02"]
[BlackClock "0:00:09"]

1. e4 {[%clk 0:03:00]}  e6 {[%clk 0:02:59]} 2. d4 {[%clk 0:03:00]}  d5 {[%clk 0:03:00]} 3. Nc3 {[%clk 0:03:00]}  Nf6 {[%clk 0:02:59]} 4. Bg5 {[%clk 0:03:00]}  dxe4 {[%clk 0:02:59]} 5. Nxe4 {[%clk 0:02:58]}  Be7 {[%clk 0:03:00]} 6. Bxf6 {[%clk 0:02:58]}  Bxf6 {[%clk 0:03:00]} 7. c3 {[%clk 0:02:56]}  Nd7 {[%clk 0:02:59]} 8. Nf3 {[%clk 0:02:48]}  Be7 {[%clk 0:02:50]} 9. Bb5 {[%clk 0:02:33]}  O-O {[%clk 0:02:48]} 10. O-O {[%clk 0:02:30]}  a6 {[%clk 0:02:34]} 11. Ba4 {[%clk 0:02:24]}  b5 {[%clk 0:02:25]} 12. Bc2 {[%clk 0:02:24]}  Bb7 {[%clk 0:02:26]} 13. a4 {[%clk 0:01:46]}  Bd5 {[%clk 0:02:09]} 14. b3 {[%clk 0:01:26]}  c5 {[%clk 0:01:55]} 15. Qe2 {[%clk 0:01:13]}  c4 {[%clk 0:01:27]} 16. b4 {[%clk 0:00:30]}  a5 {[%clk 0:01:25]} 17. bxa5 {[%clk 0:00:27]}  Qxa5 {[%clk 0:01:21]} 18. Nfd2 {[%clk 0:00:17]}  Rfc8 {[%clk 0:01:16]} 19. Rfb1 {[%clk 0:00:16]}  b4 {[%clk 0:01:13]} 20. cxb4 {[%clk 0:00:16]}  Bxb4 {[%clk 0:01:13]} 21. Nf3 {[%clk 0:00:16]}  h6 {[%clk 0:01:10]} 22. h3 {[%clk 0:00:13]}  Rab8 {[%clk 0:01:08]} 23. Qe3 {[%clk 0:00:13]}  Rb6 {[%clk 0:00:53]} 24. Ne5 {[%clk 0:00:13]}  Nxe5 {[%clk 0:00:43]} 25. dxe5 {[%clk 0:00:13]}  Rcb8 {[%clk 0:00:29]} 26. Rd1 {[%clk 0:00:08]}  Be7 {[%clk 0:00:19]} 27. Qf4 {[%clk 0:00:04]}  Rb2 {[%clk 0:00:17]} 28. Rac1 {[%clk 0:00:04]}  Qb6 {[%clk 0:00:14]} 29. h4 {[%clk 0:00:04]}  Rd8 {[%clk 0:00:11]} 30. g3 {[%clk 0:00:05]}  Ba8 {[%clk 0:00:10]} 31. Nd6 {[%clk 0:00:04]}  Bxd6 {[%clk 0:00:09]} 32. exd6 {[%clk 0:00:05]}  Qc6 {[%clk 0:00:09]} 33. f3 {[%clk 0:00:02]}  Qc5+ {[%clk 0:00:09]} 34. Kg2 {[%clk 0:00:02]}  e5 {[%clk 0:00:09]} 35. Qe4 {[%clk 0:00:02]}  Bxe4 {[%clk 0:00:09]} 0-1


[Site "https://www.chess.com"]